[Event "December 19 Late 2023"]
[Site "https://www.chess.com"]
[Date "2023.12.19"]
[Round "6"]
[White "Yashmetov, Mikhail"]
[Black "Gao, Raymond"]
[Result "1-0"]
[Board "106"]
[TimeControl "180+1"]
[WhiteFideId "24198900"]
[BlackFideId "2629429"]
[WhiteElo "2220"]
[BlackElo "1953"]
[WhiteTeam "RUS"]
[BlackTeam "CAN"]
[WhiteClock "0:01:47"]
[BlackClock "0:01:01"]

1. d4 {[%clk 0:02:59]}  Nf6 {[%clk 0:02:57]} 2. Nc3 {[%clk 0:02:58]}  d5 {[%clk 0:02:56]} 3. Bg5 {[%clk 0:02:59]}  g6 {[%clk 0:02:44]} 4. Bxf6 {[%clk 0:02:57]}  exf6 {[%clk 0:02:45]} 5. e3 {[%clk 0:02:57]}  Bg7 {[%clk 0:02:45]} 6. g3 {[%clk 0:02:57]}  O-O {[%clk 0:02:45]} 7. Bg2 {[%clk 0:02:57]}  c6 {[%clk 0:02:46]} 8. Nge2 {[%clk 0:02:57]}  Bg4 {[%clk 0:02:46]} 9. O-O {[%clk 0:02:56]}  Nd7 {[%clk 0:02:43]} 10. Qd2 {[%clk 0:02:54]}  Bxe2 {[%clk 0:02:42]} 11. Nxe2 {[%clk 0:02:54]}  f5 {[%clk 0:02:42]} 12. b3 {[%clk 0:02:51]}  Nf6 {[%clk 0:02:43]} 13. c4 {[%clk 0:02:47]}  Qd6 {[%clk 0:02:41]} 14. cxd5 {[%clk 0:02:44]}  Nxd5 {[%clk 0:02:35]} 15. Rac1 {[%clk 0:02:31]}  Rad8 {[%clk 0:02:32]} 16. Qa5 {[%clk 0:02:28]}  a6 {[%clk 0:02:25]} 17. Bxd5 {[%clk 0:02:24]}  Qxd5 {[%clk 0:02:25]} 18. Qxd5 {[%clk 0:02:24]}  Rxd5 {[%clk 0:02:25]} 19. Nf4 {[%clk 0:02:24]}  Rd7 {[%clk 0:02:25]} 20. Nd3 {[%clk 0:02:24]}  Re8 {[%clk 0:02:21]} 21. h4 {[%clk 0:02:20]}  Bf8 {[%clk 0:02:19]} 22. Rfd1 {[%clk 0:02:17]}  Rd5 {[%clk 0:02:15]} 23. b4 {[%clk 0:02:15]}  h5 {[%clk 0:02:11]} 24. a4 {[%clk 0:02:14]}  Red8 {[%clk 0:02:04]} 25. Rb1 {[%clk 0:02:04]}  Be7 {[%clk 0:01:57]} 26. Nc5 {[%clk 0:02:02]}  Bxc5 {[%clk 0:01:54]} 27. bxc5 {[%clk 0:02:03]}  R8d7 {[%clk 0:01:53]} 28. Kf1 {[%clk 0:01:58]}  Kf8 {[%clk 0:01:53]} 29. Ke2 {[%clk 0:01:58]}  Ke8 {[%clk 0:01:49]} 30. Rb6 {[%clk 0:01:57]}  Kd8 {[%clk 0:01:48]} 31. Rdb1 {[%clk 0:01:57]}  Kc8 {[%clk 0:01:49]} 32. a5 {[%clk 0:01:58]}  Re7 {[%clk 0:01:48]} 33. Kd3 {[%clk 0:01:57]}  Rdd7 {[%clk 0:01:49]} 34. Kc4 {[%clk 0:01:57]}  Re8 {[%clk 0:01:47]} 35. R6b2 {[%clk 0:01:56]}  Ree7 {[%clk 0:01:47]} 36. Re2 {[%clk 0:01:55]}  Re4 {[%clk 0:01:46]} 37. Rbe1 {[%clk 0:01:56]}  Re8 {[%clk 0:01:39]} 38. Rb1 {[%clk 0:01:56]}  Re6 {[%clk 0:01:38]} 39. Reb2 {[%clk 0:01:57]}  Ree7 {[%clk 0:01:38]} 40. Kd3 {[%clk 0:01:57]}  Re6 {[%clk 0:01:38]} 41. Ke2 {[%clk 0:01:58]}  Ree7 {[%clk 0:01:35]} 42. Kf3 {[%clk 0:01:58]}  Re6 {[%clk 0:01:35]} 43. Kf4 {[%clk 0:01:58]}  Rd5 {[%clk 0:01:22]} 44. Rxb7 {[%clk 0:01:47]}  Re4+ {[%clk 0:01:01]} 45. Kf3 {[%clk 0:01:47]} 1-0

[Event "December 19 Late 2023"]
[Site "https://www.chess.com"]
[Date "2023.12.19"]
[Round "6"]
[White "Seletsky, Grigory"]
[Black "Chemin, Justo Reinaldo"]
[Result "0-1"]
[Board "109"]
[TimeControl "180+1"]
[WhiteFideId "14112191"]
[BlackFideId "2101580"]
[WhiteElo "2482"]
[BlackElo "1940"]
[WhiteTeam "UKR"]
[BlackTeam "BRA"]
[WhiteClock "0:00:00"]
[BlackClock "0:00:03"]

1. d4 {[%clk 0:02:05]}  d5 {[%clk 0:02:57]} 2. c4 {[%clk 0:02:05]}  e6 {[%clk 0:02:57]} 3. Nc3 {[%clk 0:02:05]}  c6 {[%clk 0:02:57]} 4. cxd5 {[%clk 0:02:04]}  exd5 {[%clk 0:02:57]} 5. Nf3 {[%clk 0:02:03]}  Nf6 {[%clk 0:02:57]} 6. Bg5 {[%clk 0:02:02]}  Be7 {[%clk 0:02:57]} 7. e3 {[%clk 0:02:02]}  Nbd7 {[%clk 0:02:50]} 8. Bd3 {[%clk 0:02:02]}  Nh5 {[%clk 0:02:41]} 9. Bxe7 {[%clk 0:02:01]}  Qxe7 {[%clk 0:02:42]} 10. O-O {[%clk 0:02:00]}  g6 {[%clk 0:02:39]} 11. Rb1 {[%clk 0:01:59]}  a5 {[%clk 0:02:35]} 12. a3 {[%clk 0:01:58]}  O-O {[%clk 0:02:34]} 13. b4 {[%clk 0:01:59]}  axb4 {[%clk 0:02:31]} 14. axb4 {[%clk 0:01:59]}  b5 {[%clk 0:02:29]} 15. Qc2 {[%clk 0:01:46]}  f5 {[%clk 0:02:16]} 16. Ne2 {[%clk 0:01:32]}  Qd6 {[%clk 0:02:08]} 17. Qc3 {[%clk 0:01:25]}  Nb6 {[%clk 0:02:03]} 18. Ne5 {[%clk 0:01:25]}  Nc4 {[%clk 0:01:59]} 19. Bxc4 {[%clk 0:01:25]}  dxc4 {[%clk 0:01:57]} 20. Ra1 {[%clk 0:01:19]}  Bb7 {[%clk 0:01:41]} 21. f3 {[%clk 0:01:10]}  Nf6 {[%clk 0:01:40]} 22. Qd2 {[%clk 0:01:03]}  Nd5 {[%clk 0:01:36]} 23. e4 {[%clk 0:00:58]}  fxe4 {[%clk 0:01:10]} 24. Rxa8 {[%clk 0:00:55]}  Bxa8 {[%clk 0:01:02]} 25. fxe4 {[%clk 0:00:56]}  Rxf1+ {[%clk 0:00:52]} 26. Kxf1 {[%clk 0:00:56]}  Nxb4 {[%clk 0:00:44]} 27. Qc3 {[%clk 0:00:19]}  c5 {[%clk 0:00:38]} 28. dxc5 {[%clk 0:00:17]}  Qxc5 {[%clk 0:00:38]} 29. Ng4 {[%clk 0:00:17]}  Nd3 {[%clk 0:00:28]} 30. Nh6+ {[%clk 0:00:16]}  Kf8 {[%clk 0:00:27]} 31. Qf6+ {[%clk 0:00:13]}  Ke8 {[%clk 0:00:24]} 32. Qf7+ {[%clk 0:00:11]}  Kd8 {[%clk 0:00:22]} 33. Qg8+ {[%clk 0:00:07]}  Kc7 {[%clk 0:00:21]} 34. Qxh7+ {[%clk 0:00:07]}  Kb6 {[%clk 0:00:21]} 35. Qxg6+ {[%clk 0:00:07]}  Ka5 {[%clk 0:00:20]} 36. Qf5 {[%clk 0:00:07]}  Qe3 {[%clk 0:00:17]} 37. Qf3 {[%clk 0:00:07]}  Qxh6 {[%clk 0:00:16]} 38. Qf7 {[%clk 0:00:03]}  Bxe4 {[%clk 0:00:10]} 39. Qa7+ {[%clk 0:00:03]}  Kb4 {[%clk 0:00:10]} 40. Qe7+ {[%clk 0:00:02]}  Kb3 {[%clk 0:00:09]} 41. Qxe4 {[%clk 0:00:02]}  Qf6+ {[%clk 0:00:05]} 42. Qf3 {[%clk 0:00:02]}  Qxf3+ {[%clk 0:00:05]} 43. gxf3 {[%clk 0:00:03]}  Ne5 {[%clk 0:00:03]} 44. f4 {[%clk 0:00:02]}  Nf7 {[%clk 0:00:03]} 45. Kf2 {[%clk 0:00:01]}  c3 {[%clk 0:00:03]} 46. Ke3 {[%clk 0:00:01]}  c2 {[%clk 0:00:03]} 47. Nd4+ {[%clk 0:00:01]}  Kc3 {[%clk 0:00:02]} 48. Nxc2 {[%clk 0:00:01]}  Kxc2 {[%clk 0:00:03]} 49. Kd4 {[%clk 0:00:00]}  b4 {[%clk 0:00:03]} 0-1

[Event "December 19 Late 2023"]
[Site "https://www.chess.com"]
[Date "2023.12.19"]
[Round "6"]
[White "Mazurkiewicz, Michal"]
[Black "Vanek, Tomas"]
[Result "1-0"]
[Board "112"]
[TimeControl "180+1"]
[WhiteFideId "1124943"]
[BlackFideId "313459"]
[WhiteElo "2103"]
[BlackElo "2052"]
[WhiteTeam "POL"]
[BlackTeam "CZE"]
[WhiteClock "0:00:05"]
[BlackClock "0:00:00"]

1. e4 {[%clk 0:02:59]}  c5 {[%clk 0:02:59]} 2. Nf3 {[%clk 0:02:59]}  Nc6 {[%clk 0:02:59]} 3. g3 {[%clk 0:02:59]}  e5 {[%clk 0:02:58]} 4. Bg2 {[%clk 0:02:59]}  g6 {[%clk 0:02:58]} 5. O-O {[%clk 0:03:00]}  Bg7 {[%clk 0:02:58]} 6. d3 {[%clk 0:03:01]}  Nge7 {[%clk 0:02:57]} 7. Nc3 {[%clk 0:03:01]}  O-O {[%clk 0:02:56]} 8. Nd2 {[%clk 0:03:02]}  Rb8 {[%clk 0:02:37]} 9. a4 {[%clk 0:03:01]}  Nb4 {[%clk 0:02:36]} 10. Nc4 {[%clk 0:03:00]}  d5 {[%clk 0:02:34]} 11. exd5 {[%clk 0:02:58]}  Nexd5 {[%clk 0:02:34]} 12. Nxd5 {[%clk 0:02:55]}  Nxd5 {[%clk 0:02:33]} 13. Re1 {[%clk 0:02:53]}  f6 {[%clk 0:02:21]} 14. c3 {[%clk 0:02:47]}  Kh8 {[%clk 0:02:20]} 15. Qb3 {[%clk 0:02:46]}  Be6 {[%clk 0:02:18]} 16. f4 {[%clk 0:02:45]}  Qd7 {[%clk 0:02:01]} 17. fxe5 {[%clk 0:02:34]}  Bh3 {[%clk 0:02:00]} 18. exf6 {[%clk 0:02:27]}  Nxf6 {[%clk 0:01:51]} 19. Ne5 {[%clk 0:02:24]}  Qc8 {[%clk 0:01:33]} 20. Nf7+ {[%clk 0:01:35]}  Rxf7 {[%clk 0:01:32]} 21. Qxf7 {[%clk 0:01:36]}  Bxg2 {[%clk 0:01:32]} 22. Kxg2 {[%clk 0:01:37]}  Qc6+ {[%clk 0:01:33]} 23. Kg1 {[%clk 0:01:37]}  c4 {[%clk 0:01:23]} 24. d4 {[%clk 0:01:34]}  Ne4 {[%clk 0:01:19]} 25. d5 {[%clk 0:01:17]}  Qb6+ {[%clk 0:01:11]} 26. Be3 {[%clk 0:00:49]}  Qxb2 {[%clk 0:01:09]} 27. Bd4 {[%clk 0:00:17]}  Bxd4+ {[%clk 0:01:08]} 28. cxd4 {[%clk 0:00:18]}  Qxd4+ {[%clk 0:01:08]} 29. Kg2 {[%clk 0:00:18]}  Qd2+ {[%clk 0:01:01]} 30. Kh1 {[%clk 0:00:17]}  Nf2+ {[%clk 0:01:00]} 31. Kg2 {[%clk 0:00:17]}  Ne4+ {[%clk 0:00:56]} 32. Kg1 {[%clk 0:00:12]}  Qd4+ {[%clk 0:00:55]} 33. Kh1 {[%clk 0:00:10]}  Rd8 {[%clk 0:00:34]} 34. Qf3 {[%clk 0:00:08]}  Nd2 {[%clk 0:00:30]} 35. Qg2 {[%clk 0:00:08]}  c3 {[%clk 0:00:29]} 36. Rac1 {[%clk 0:00:07]}  Rxd5 {[%clk 0:00:27]} 37. Rxc3 {[%clk 0:00:04]}  Rd8 {[%clk 0:00:19]} 38. Rce3 {[%clk 0:00:05]}  Kg7 {[%clk 0:00:17]} 39. Re7+ {[%clk 0:00:05]}  Kh6 {[%clk 0:00:17]} 40. Qe2 {[%clk 0:00:04]}  Qd5+ {[%clk 0:00:17]} 41. Qg2 {[%clk 0:00:04]}  Qxg2+ {[%clk 0:00:16]} 42. Kxg2 {[%clk 0:00:05]}  Rb8 {[%clk 0:00:14]} 43. Rc7 {[%clk 0:00:04]}  b5 {[%clk 0:00:10]} 44. a5 {[%clk 0:00:04]}  b4 {[%clk 0:00:10]} 45. Rxa7 {[%clk 0:00:04]}  b3 {[%clk 0:00:10]} 46. a6 {[%clk 0:00:05]}  b2 {[%clk 0:00:10]} 47. Rb7 {[%clk 0:00:05]}  b1=Q {[%clk 0:00:03]} 48. Rexb1 {[%clk 0:00:05]}  Ra8 {[%clk 0:00:03]} 49. Ra1 {[%clk 0:00:03]}  Re8 {[%clk 0:00:03]} 50. a7 {[%clk 0:00:03]}  Re2+ {[%clk 0:00:04]} 51. Kg1 {[%clk 0:00:03]}  Kg5 {[%clk 0:00:05]} 52. a8=Q {[%clk 0:00:02]}  Nf3+ {[%clk 0:00:06]} 53. Kf1 {[%clk 0:00:03]}  Rxh2 {[%clk 0:00:05]} 54. Qd8+ {[%clk 0:00:04]}  Kh6 {[%clk 0:00:05]} 55. Rxh7+ {[%clk 0:00:04]}  Kxh7 {[%clk 0:00:05]} 56. Qc7+ {[%clk 0:00:04]}  Kh6 {[%clk 0:00:05]} 57. Qf4+ {[%clk 0:00:04]}  g5 {[%clk 0:00:05]} 58. Qxf3 {[%clk 0:00:04]}  Rc2 {[%clk 0:00:04]} 59. Ra6+ {[%clk 0:00:04]}  Kh7 {[%clk 0:00:03]} 60. Qb7+ {[%clk 0:00:05]}  Kg8 {[%clk 0:00:00]} 61. Ra8+ {[%clk 0:00:05]} 1-0

[Event "December 19 Late 2023"]
[Site "https://www.chess.com"]
[Date "2023.12.19"]
[Round "6"]
[White "Vargas Rodriguez, Wilver"]
[Black "Reinecke, Katharina"]
[Result "1-0"]
[Board "120"]
[TimeControl "180+1"]
[WhiteFideId "3509672"]
[BlackFideId "12929727"]
[WhiteElo "2210"]
[BlackElo "1761"]
[WhiteTeam "CUB"]
[BlackTeam "GER"]
[WhiteClock "0:01:28"]
[BlackClock "0:00:05"]

1. e4 {[%clk 0:03:00]}  c6 {[%clk 0:02:59]} 2. d4 {[%clk 0:03:00]}  d5 {[%clk 0:02:59]} 3. exd5 {[%clk 0:03:00]}  cxd5 {[%clk 0:02:59]} 4. Bd3 {[%clk 0:02:58]}  Nc6 {[%clk 0:02:57]} 5. Nf3 {[%clk 0:02:58]}  Bg4 {[%clk 0:02:53]} 6. c3 {[%clk 0:02:58]}  Qc7 {[%clk 0:02:13]} 7. h3 {[%clk 0:02:54]}  Bxf3 {[%clk 0:02:10]} 8. Qxf3 {[%clk 0:02:50]}  Nf6 {[%clk 0:02:02]} 9. O-O {[%clk 0:02:49]}  e6 {[%clk 0:01:57]} 10. Bg5 {[%clk 0:02:47]}  Be7 {[%clk 0:01:52]} 11. Nd2 {[%clk 0:02:47]}  O-O {[%clk 0:01:48]} 12. Rfe1 {[%clk 0:02:47]}  h6 {[%clk 0:01:45]} 13. Bh4 {[%clk 0:02:45]}  a6 {[%clk 0:01:40]} 14. Re2 {[%clk 0:02:43]}  b5 {[%clk 0:01:38]} 15. a3 {[%clk 0:02:42]}  Na5 {[%clk 0:01:30]} 16. Rae1 {[%clk 0:02:39]}  Nc4 {[%clk 0:01:27]} 17. Nxc4 {[%clk 0:02:34]}  bxc4 {[%clk 0:01:24]} 18. Bc2 {[%clk 0:02:33]}  Rab8 {[%clk 0:01:15]} 19. g4 {[%clk 0:02:30]}  Kh8 {[%clk 0:00:18]} 20. g5 {[%clk 0:02:21]}  hxg5 {[%clk 0:00:18]} 21. Bxg5 {[%clk 0:02:21]}  Rxb2 {[%clk 0:00:18]} 22. Bxf6 {[%clk 0:02:21]}  Rxc2 {[%clk 0:00:15]} 23. Bxg7+ {[%clk 0:01:49]}  Kxg7 {[%clk 0:00:14]} 24. Rxc2 {[%clk 0:01:49]}  Rg8 {[%clk 0:00:12]} 25. Kh1 {[%clk 0:01:49]}  Kf8 {[%clk 0:00:12]} 26. Rxe6 {[%clk 0:01:42]}  Ke8 {[%clk 0:00:11]} 27. Rxa6 {[%clk 0:01:35]}  Qd7 {[%clk 0:00:09]} 28. Re2 {[%clk 0:01:30]}  Kd8 {[%clk 0:00:09]} 29. Ra8+ {[%clk 0:01:28]}  Kc7 {[%clk 0:00:05]} 30. Rxg8 {[%clk 0:01:28]} 1-0

[Event "December 19 Late 2023"]
[Site "https://www.chess.com"]
[Date "2023.12.19"]
[Round "6"]
[White "Dwilewicz, Katarzyna"]
[Black "Igel2023"]
[Result "1-0"]
[Board "124"]
[TimeControl "180+1"]
[WhiteFideId "1148486"]
[WhiteElo "2098"]
[BlackElo "2242"]
[WhiteTeam "POL"]
[WhiteClock "0:02:15"]
[BlackClock "0:01:28"]

1. e4 {[%clk 0:02:57]}  Nc6 {[%clk 0:02:59]} 2. Nf3 {[%clk 0:02:54]}  d6 {[%clk 0:02:59]} 3. d4 {[%clk 0:02:49]}  Nf6 {[%clk 0:02:59]} 4. Nc3 {[%clk 0:02:48]}  Bg4 {[%clk 0:03:00]} 5. Be3 {[%clk 0:02:47]}  e6 {[%clk 0:02:59]} 6. h3 {[%clk 0:02:47]}  Bh5 {[%clk 0:02:59]} 7. Be2 {[%clk 0:02:47]}  d5 {[%clk 0:02:58]} 8. e5 {[%clk 0:02:47]}  Nd7 {[%clk 0:02:58]} 9. Qd2 {[%clk 0:02:45]}  f6 {[%clk 0:02:57]} 10. Ng5 {[%clk 0:02:23]}  Bxe2 {[%clk 0:02:07]} 11. Nxe6 {[%clk 0:02:22]}  Qe7 {[%clk 0:02:04]} 12. Nxc7+ {[%clk 0:02:22]}  Kd8 {[%clk 0:02:04]} 13. Nxa8 {[%clk 0:02:22]}  Ba6 {[%clk 0:01:48]} 14. Nxd5 {[%clk 0:02:17]}  Qf7 {[%clk 0:01:28]} 15. Nac7 {[%clk 0:02:15]} 1-0

[Event "December 19 Late 2023"]
[Site "https://www.chess.com"]
[Date "2023.12.19"]
[Round "6"]
[White "Zhukov, Maksim"]
[Black "Demina, Marya"]
[Result "1-0"]
[Board "125"]
[TimeControl "180+1"]
[WhiteFideId "34181790"]
[BlackFideId "4195671"]
[WhiteElo "1925"]
[BlackElo "1978"]
[WhiteTeam "RUS"]
[BlackTeam "RUS"]
[WhiteClock "0:01:13"]
[BlackClock "0:00:00"]

1. e4 {[%clk 0:03:00]}  c6 {[%clk 0:02:59]} 2. Nf3 {[%clk 0:02:59]}  d5 {[%clk 0:03:00]} 3. d3 {[%clk 0:03:00]}  dxe4 {[%clk 0:02:56]} 4. dxe4 {[%clk 0:03:01]}  Qxd1+ {[%clk 0:02:57]} 5. Kxd1 {[%clk 0:03:02]}  Bg4 {[%clk 0:02:56]} 6. Be2 {[%clk 0:03:00]}  Nd7 {[%clk 0:02:55]} 7. Be3 {[%clk 0:02:58]}  e5 {[%clk 0:02:55]} 8. Nfd2 {[%clk 0:02:56]}  Be6 {[%clk 0:02:46]} 9. Bc4 {[%clk 0:02:53]}  Bxc4 {[%clk 0:02:44]} 10. Nxc4 {[%clk 0:02:53]}  b5 {[%clk 0:02:42]} 11. Na5 {[%clk 0:02:51]}  Rc8 {[%clk 0:02:34]} 12. a4 {[%clk 0:02:43]}  a6 {[%clk 0:02:33]} 13. Nd2 {[%clk 0:02:39]}  Ngf6 {[%clk 0:02:01]} 14. f3 {[%clk 0:02:38]}  Be7 {[%clk 0:01:59]} 15. c3 {[%clk 0:02:38]}  O-O {[%clk 0:01:58]} 16. axb5 {[%clk 0:02:37]}  cxb5 {[%clk 0:01:56]} 17. Ke2 {[%clk 0:02:38]}  Bc5 {[%clk 0:01:50]} 18. Rhd1 {[%clk 0:02:36]}  Rfd8 {[%clk 0:01:46]} 19. Nb7 {[%clk 0:02:34]}  Bxe3 {[%clk 0:01:30]} 20. Kxe3 {[%clk 0:02:17]}  Rf8 {[%clk 0:01:20]} 21. Rxa6 {[%clk 0:02:16]}  Rc7 {[%clk 0:00:45]} 22. Nd6 {[%clk 0:02:10]}  b4 {[%clk 0:00:34]} 23. N2c4 {[%clk 0:02:01]}  bxc3 {[%clk 0:00:33]} 24. bxc3 {[%clk 0:02:01]}  Rb8 {[%clk 0:00:29]} 25. Rda1 {[%clk 0:01:56]}  g6 {[%clk 0:00:23]} 26. Ra8 {[%clk 0:01:52]}  Rxa8 {[%clk 0:00:21]} 27. Rxa8+ {[%clk 0:01:53]}  Kg7 {[%clk 0:00:22]} 28. g4 {[%clk 0:01:51]}  h6 {[%clk 0:00:21]} 29. h4 {[%clk 0:01:50]}  g5 {[%clk 0:00:21]} 30. h5 {[%clk 0:01:41]}  Kh7 {[%clk 0:00:13]} 31. Kd2 {[%clk 0:01:37]}  Nc5 {[%clk 0:00:08]} 32. Nxe5 {[%clk 0:01:34]}  Nb3+ {[%clk 0:00:06]} 33. Kc2 {[%clk 0:01:31]}  Nc5 {[%clk 0:00:05]} 34. Nexf7 {[%clk 0:01:25]}  Ne6 {[%clk 0:00:04]} 35. Rh8+ {[%clk 0:01:19]}  Kg7 {[%clk 0:00:03]} 36. Rxh6 {[%clk 0:01:19]}  Nd4+ {[%clk 0:00:01]} 37. Kd3 {[%clk 0:01:18]}  Nxf3 {[%clk 0:00:01]} 38. Rg6+ {[%clk 0:01:16]}  Kf8 {[%clk 0:00:00]} 39. Ke3 {[%clk 0:01:13]} 1-0

[Event "December 19 Late 2023"]
[Site "https://www.chess.com"]
[Date "2023.12.19"]
[Round "6"]
[White "Kovalevsky, Stanislav"]
[Black "Porat, Tori"]
[Result "1-0"]
[Board "126"]
[TimeControl "180+1"]
[WhiteFideId "13508598"]
[BlackFideId "30982626"]
[WhiteElo "2043"]
[BlackElo "1693"]
[WhiteTeam "FID"]
[BlackTeam "USA"]
[WhiteClock "0:00:14"]
[BlackClock "0:00:20"]

1. e4 {[%clk 0:02:45]}  c5 {[%clk 0:02:59]} 2. c3 {[%clk 0:02:45]}  d5 {[%clk 0:02:59]} 3. exd5 {[%clk 0:02:45]}  Qxd5 {[%clk 0:03:00]} 4. Nf3 {[%clk 0:02:43]}  e6 {[%clk 0:02:58]} 5. d4 {[%clk 0:02:41]}  Nc6 {[%clk 0:02:58]} 6. Be3 {[%clk 0:02:36]}  Nf6 {[%clk 0:02:56]} 7. c4 {[%clk 0:02:32]}  Qd8 {[%clk 0:02:52]} 8. Nc3 {[%clk 0:02:24]}  cxd4 {[%clk 0:02:51]} 9. Nxd4 {[%clk 0:02:25]}  Nxd4 {[%clk 0:02:46]} 10. Qxd4 {[%clk 0:02:13]}  Qxd4 {[%clk 0:02:45]} 11. Bxd4 {[%clk 0:02:14]}  Be7 {[%clk 0:02:43]} 12. Nb5 {[%clk 0:02:14]}  O-O {[%clk 0:02:36]} 13. Nxa7 {[%clk 0:02:13]}  e5 {[%clk 0:02:34]} 14. Be3 {[%clk 0:02:11]}  Bd7 {[%clk 0:02:31]} 15. Bd3 {[%clk 0:02:02]}  Bb4+ {[%clk 0:02:31]} 16. Ke2 {[%clk 0:02:01]}  e4 {[%clk 0:02:30]} 17. Bc2 {[%clk 0:02:01]}  Bg4+ {[%clk 0:02:29]} 18. f3 {[%clk 0:02:00]}  Be6 {[%clk 0:02:23]} 19. b3 {[%clk 0:01:56]}  Bf5 {[%clk 0:02:10]} 20. Kf2 {[%clk 0:01:43]}  Bg6 {[%clk 0:02:03]} 21. fxe4 {[%clk 0:01:25]}  Ng4+ {[%clk 0:02:03]} 22. Kf3 {[%clk 0:01:24]}  Nxe3 {[%clk 0:02:03]} 23. Kxe3 {[%clk 0:01:24]}  Rxa7 {[%clk 0:02:02]} 24. a4 {[%clk 0:01:23]}  h6 {[%clk 0:01:58]} 25. Rad1 {[%clk 0:01:23]}  b6 {[%clk 0:01:58]} 26. Rd5 {[%clk 0:01:22]}  Bc5+ {[%clk 0:01:57]} 27. Kf3 {[%clk 0:01:21]}  Re7 {[%clk 0:01:56]} 28. a5 {[%clk 0:01:15]}  Rfe8 {[%clk 0:01:49]} 29. axb6 {[%clk 0:01:15]}  Bxb6 {[%clk 0:01:49]} 30. Re1 {[%clk 0:01:11]}  Re6 {[%clk 0:01:45]} 31. b4 {[%clk 0:01:08]}  Bh5+ {[%clk 0:01:37]} 32. Rxh5 {[%clk 0:01:01]}  Rf6+ {[%clk 0:01:32]} 33. Kg4 {[%clk 0:00:53]}  g6 {[%clk 0:01:19]} 34. Rb5 {[%clk 0:00:49]}  Bc7 {[%clk 0:01:16]} 35. g3 {[%clk 0:00:33]}  Rf2 {[%clk 0:01:13]} 36. Bb3 {[%clk 0:00:23]}  Rxh2 {[%clk 0:01:11]} 37. Rb7 {[%clk 0:00:20]}  Be5 {[%clk 0:01:02]} 38. c5 {[%clk 0:00:20]}  Rf2 {[%clk 0:00:50]} 39. Re3 {[%clk 0:00:16]}  Bg7 {[%clk 0:00:41]} 40. Kh3 {[%clk 0:00:15]}  Rb2 {[%clk 0:00:37]} 41. c6 {[%clk 0:00:14]}  Rb1 {[%clk 0:00:22]} 42. Bxf7+ {[%clk 0:00:13]}  Kf8 {[%clk 0:00:20]} 43. Bxe8 {[%clk 0:00:14]}  Kxe8 {[%clk 0:00:20]} 44. c7 {[%clk 0:00:14]}  Kd7 {[%clk 0:00:19]} 45. Rd3+ {[%clk 0:00:13]}  Kc8 {[%clk 0:00:19]} 46. Rd8+ {[%clk 0:00:13]}  Kxb7 {[%clk 0:00:20]} 47. c8=Q+ {[%clk 0:00:13]}  Kb6 {[%clk 0:00:21]} 48. Qc5+ {[%clk 0:00:13]}  Ka6 {[%clk 0:00:20]} 49. Rd6+ {[%clk 0:00:13]}  Kb7 {[%clk 0:00:20]} 50. Rb6+ {[%clk 0:00:13]}  Ka7 {[%clk 0:00:20]} 51. Qa5# {[%clk 0:00:14]} 1-0

[Event "December 19 Late 2023"]
[Site "https://www.chess.com"]
[Date "2023.12.19"]
[Round "6"]
[White "Jesusesmifuerza"]
[Black "Khodabandeh, Milad"]
[Result "1-0"]
[Board "127"]
[TimeControl "180+1"]
[BlackFideId "12538620"]
[WhiteElo "2166"]
[BlackElo "1846"]
[BlackTeam "IRI"]
[WhiteClock "0:00:54"]
[BlackClock "0:00:00"]

1. e4 {[%clk 0:02:59]}  e5 {[%clk 0:03:00]} 2. Nf3 {[%clk 0:02:59]}  Nc6 {[%clk 0:03:00]} 3. Bb5 {[%clk 0:03:00]}  a6 {[%clk 0:03:00]} 4. Ba4 {[%clk 0:03:00]}  Nf6 {[%clk 0:03:01]} 5. O-O {[%clk 0:03:00]}  Be7 {[%clk 0:03:01]} 6. d3 {[%clk 0:03:00]}  b5 {[%clk 0:02:59]} 7. Bb3 {[%clk 0:03:00]}  Bb7 {[%clk 0:03:00]} 8. c3 {[%clk 0:03:00]}  O-O {[%clk 0:02:58]} 9. h3 {[%clk 0:02:58]}  d5 {[%clk 0:02:56]} 10. exd5 {[%clk 0:02:59]}  Nxd5 {[%clk 0:02:57]} 11. Re1 {[%clk 0:03:00]}  Nf4 {[%clk 0:02:26]} 12. Bxf4 {[%clk 0:02:39]}  exf4 {[%clk 0:02:26]} 13. d4 {[%clk 0:02:40]}  Bd6 {[%clk 0:02:23]} 14. Nbd2 {[%clk 0:02:39]}  Kh8 {[%clk 0:02:11]} 15. Ne4 {[%clk 0:02:35]}  h6 {[%clk 0:02:06]} 16. Bc2 {[%clk 0:02:28]}  f5 {[%clk 0:02:05]} 17. Nxd6 {[%clk 0:02:20]}  Qxd6 {[%clk 0:02:06]} 18. Qd3 {[%clk 0:02:16]}  g6 {[%clk 0:01:21]} 19. Re2 {[%clk 0:02:12]}  Rae8 {[%clk 0:01:18]} 20. Rae1 {[%clk 0:02:12]}  Qd8 {[%clk 0:01:06]} 21. Bb3 {[%clk 0:01:38]}  Na5 {[%clk 0:00:59]} 22. Ne5 {[%clk 0:01:33]}  Be4 {[%clk 0:00:42]} 23. Qd2 {[%clk 0:01:20]}  Nxb3 {[%clk 0:00:40]} 24. axb3 {[%clk 0:01:18]}  Rxe5 {[%clk 0:00:13]} 25. dxe5 {[%clk 0:01:17]}  Qxd2 {[%clk 0:00:13]} 26. Rxd2 {[%clk 0:01:18]}  f3 {[%clk 0:00:11]} 27. Rd7 {[%clk 0:01:12]}  fxg2 {[%clk 0:00:08]} 28. e6 {[%clk 0:01:09]}  Re8 {[%clk 0:00:09]} 29. e7 {[%clk 0:01:08]}  Kg7 {[%clk 0:00:08]} 30. Rxc7 {[%clk 0:01:08]}  Kf7 {[%clk 0:00:08]} 31. Ra7 {[%clk 0:00:54]}  Rxe7 {[%clk 0:00:08]} 32. Rxe7+ {[%clk 0:00:54]}  Kxe7 {[%clk 0:00:07]} 33. f3 {[%clk 0:00:55]}  Kf6 {[%clk 0:00:06]} 34. fxe4 {[%clk 0:00:55]}  f4 {[%clk 0:00:06]} 35. e5+ {[%clk 0:00:55]}  Ke6 {[%clk 0:00:06]} 36. Kxg2 {[%clk 0:00:55]}  g5 {[%clk 0:00:07]} 37. h4 {[%clk 0:00:56]}  g4 {[%clk 0:00:06]} 38. Re4 {[%clk 0:00:56]}  h5 {[%clk 0:00:04]} 39. Rxf4 {[%clk 0:00:54]}  Kxe5 {[%clk 0:00:00]} 40. Rd4 {[%clk 0:00:54]} 1-0